fUSD/lending_fUSD_20240506
["ID","MTS","AMOUNT","RATE_DAILY","PERIOD"]
[326521227,1715039443726,-191.46877308,0.00023127,2]
[326521228,1715039443863,-1000.0,0.00023239,2]
[326521229,1715039443874,-823.99,0.00023293,2]
[326521230,1715039443884,-191.46877308,0.00023296,2]
[326521231,1715039443893,-158.20054459,0.00023376,2]
[326521232,1715039443902,-2001.32534763,0.000234,2]
[326521233,1715039443911,-191.46877308,0.00023466,2]
[326521234,1715039443921,-1000.0,0.00023501,2]
[326521235,1715039443931,-1000.0,0.00023558,2]
[326521236,1715039443940,-151.8721283,0.00023602,2]
[326521237,1715039443949,-152.73358246,0.00023624,2]
[326521238,1715039443959,-191.46877308,0.00023635,2]
[326521239,1715039443968,-150.0,0.000237,3]
[326521240,1715039443978,-1393.93,0.00023786,2]
[326521241,1715039443988,-152.73358246,0.00023789,2]
[326521242,1715039443997,-191.46877308,0.00023805,2]
[326521243,1715039444007,-191.46877308,0.00023974,2]
[326521244,1715039444016,-432.28243981,0.00024,2]
[326521245,1715039444026,-1400.0,0.00024,3]
[326521246,1715039444035,-191.46877308,0.00024144,2]
[326521247,1715039444045,-157.050708,0.00024148,2]
[326521248,1715039444054,-150.0,0.000242,4]
[326521249,1715039444063,-180.0,0.0002423,2]
[326521250,1715039444073,-15400.77350708,0.00024244,2]
[326521251,1715039444083,-754.39,0.000243,2]
[326521252,1715039444092,-1428.23,0.000243,2]
[326521253,1715039444101,-191.46877308,0.00024313,2]
[326521254,1715039444111,-157.050708,0.00024448,2]
[326521255,1715039444120,-191.46877308,0.00024483,2]
[326521256,1715039444130,-1421.61,0.000245,2]
[326521257,1715039444139,-100000.0,0.00024557,2]
[326521258,1715039444149,-227.1932,0.00024557,2]
[326521259,1715039444158,-7398.5607,0.00024557,2]
[326521260,1715039444167,-5707.9215,0.00024557,2]
[326521261,1715039444177,-191.46877308,0.00024652,2]
[326521262,1715039444187,-150.0,0.00024656,10]
[326521263,1715039444197,-500.0,0.00024657,2]
[326521264,1715039444210,-500.0,0.00024657,2]
[326521265,1715039444249,-500.0,0.00024657,2]
[326521266,1715039444259,-500.0,0.00024657,2]
[326521267,1715039444268,-500.0,0.00024657,2]
[326521268,1715039444278,-634.28,0.00024657,2]
[326521269,1715039444289,-500.0,0.00024657,2]
[326521270,1715039444299,-500.0,0.00024657,2]
[326521271,1715039444308,-621.48,0.00024657,2]
[326521272,1715039444317,-500.0,0.00024657,2]
[326521273,1715039444327,-500.0,0.00024657,2]
[326521274,1715039444336,-500.0,0.00024657,2]
[326521275,1715039444346,-500.0,0.00024657,2]
[326521276,1715039444355,-500.0,0.00024657,2]
[326521277,1715039444365,-500.0,0.00024657,2]
[326521278,1715039444374,-586.03,0.00024657,2]
[326521279,1715039444384,-500.0,0.00024657,2]
[326521280,1715039444394,-500.0,0.00024657,2]
[326521281,1715039444404,-715.86,0.00024657,2]
[326521282,1715039444414,-150.0,0.00024657,2]
[326521283,1715039444424,-500.0,0.00024657,2]
[326521284,1715039444433,-500.0,0.00024657,2]
[326521285,1715039444444,-631.94,0.00024657,2]
[326521286,1715039444454,-500.0,0.00024657,2]
[326521287,1715039444475,-500.0,0.00024657,2]
[326521288,1715039444488,-500.0,0.00024657,2]
[326521289,1715039444497,-500.0,0.00024657,2]
[326521290,1715039444507,-500.0,0.00024657,2]
[326521291,1715039444517,-500.0,0.00024657,2]
[326521292,1715039444527,-500.0,0.00024657,2]
[326521293,1715039444538,-500.0,0.00024657,2]
[326521294,1715039444547,-1339.66,0.00024657,2]
[326521295,1715039444557,-500.0,0.00024657,2]
[326521296,1715039444566,-541.0,0.00024657,2]
[326521297,1715039444576,-524.46,0.00024657,2]
[326521298,1715039444585,-585.36,0.00024657,2]
[326521299,1715039444594,-500.0,0.00024657,2]
[326521300,1715039444604,-500.0,0.00024657,2]
[326521301,1715039444615,-559.52,0.00024657,2]
[326521302,1715039444625,-500.0,0.00024657,2]
[326521303,1715039444636,-639.48,0.00024657,2]
[326521304,1715039444645,-500.0,0.00024657,2]
[326521305,1715039444656,-617.11,0.00024657,2]
[326521306,1715039444665,-500.0,0.00024657,2]
[326521307,1715039444675,-618.44,0.00024657,2]
[326521308,1715039444685,-1019.23,0.00024657,2]
[326521309,1715039444695,-500.0,0.00024657,2]
[326521310,1715039444705,-500.0,0.00024657,2]
[326521311,1715039444715,-500.0,0.00024657,2]
[326521312,1715039444724,-500.0,0.00024657,2]
[326521313,1715039444733,-522.64,0.00024657,2]
[326521314,1715039444742,-500.0,0.00024657,2]
[326521315,1715039444753,-500.0,0.00024657,2]
[326521316,1715039444762,-500.0,0.00024657,2]
[326521317,1715039444772,-500.0,0.00024657,2]
[326521318,1715039444781,-500.0,0.00024657,2]
[326521319,1715039444791,-504.81,0.00024657,2]
[326521320,1715039444800,-500.0,0.00024657,2]
[326521321,1715039444811,-500.0,0.00024657,2]
[326521322,1715039444822,-500.0,0.00024657,2]
[326521323,1715039444831,-1040.02,0.00024657,2]
[326521324,1715039444842,-500.0,0.00024657,2]
[326521325,1715039444851,-500.0,0.00024657,2]
[326521326,1715039444861,-626.92,0.00024657,2]
[326521327,1715039444871,-500.0,0.00024657,2]
[326521328,1715039444880,-500.0,0.00024657,2]
[326521329,1715039444890,-998.18,0.00024657,2]
[326521331,1715039444899,-500.0,0.00024657,2]
[326521332,1715039444908,-500.0,0.00024657,2]
[326521334,1715039444918,-500.0,0.00024657,2]
[326521336,1715039444927,-500.0,0.00024657,2]
[326521338,1715039444936,-669.12,0.00024657,2]
[326521340,1715039444946,-500.0,0.00024657,2]
[326521342,1715039444955,-781.91,0.00024657,2]
[326521344,1715039444965,-500.0,0.00024657,2]
[326521346,1715039444975,-500.0,0.00024657,2]
[326521348,1715039444984,-500.0,0.00024657,2]
[326521349,1715039444993,-500.0,0.00024657,2]
[326521350,1715039445003,-732.71,0.00024657,2]
[326521351,1715039445013,-613.19,0.00024657,2]
[326521352,1715039445029,-500.0,0.00024657,2]
[326521353,1715039445072,-500.0,0.00024657,2]
[326521354,1715039445082,-500.0,0.00024657,2]
[326521355,1715039445092,-968.56,0.00024657,2]
[326521356,1715039445101,-704.61,0.00024657,2]
[326521357,1715039445111,-500.0,0.00024657,2]
[326521358,1715039445121,-632.26,0.00024657,2]
[326521359,1715039445130,-500.0,0.00024657,2]
[326521360,1715039445140,-500.0,0.00024657,2]
[326521361,1715039445150,-500.0,0.00024657,2]
[326521362,1715039445161,-1816.05,0.00024657,2]
[326521363,1715039445170,-500.0,0.00024657,2]
[326521364,1715039445179,-500.0,0.00024657,2]
[326521365,1715039445189,-500.0,0.00024657,2]
[326521366,1715039445202,-500.0,0.00024657,2]
[326521367,1715039445213,-500.0,0.00024657,2]
[326521368,1715039445222,-835.8,0.00024657,2]
[326521369,1715039445231,-736.22,0.00024657,2]
[326521370,1715039445241,-500.0,0.00024657,2]
[326521371,1715039445252,-945.17,0.00024657,2]
[326521372,1715039445262,-500.0,0.00024657,2]
[326521373,1715039445271,-500.0,0.00024657,2]
[326521374,1715039445282,-500.0,0.00024657,2]
[326521375,1715039445292,-500.0,0.00024657,2]
[326521376,1715039445301,-500.0,0.00024657,2]
[326521377,1715039445310,-500.0,0.00024657,2]
[326521378,1715039445320,-500.0,0.00024657,2]
[326521379,1715039445329,-500.0,0.00024657,2]
[326521380,1715039445341,-500.0,0.00024657,2]
[326521381,1715039445352,-500.0,0.00024657,2]
[326521382,1715039445362,-500.0,0.00024657,2]
[326521383,1715039445371,-500.0,0.00024657,2]
[326521384,1715039445381,-560.77,0.00024657,2]
[326521385,1715039445390,-1116.29,0.00024657,2]
[326521386,1715039445399,-500.0,0.00024657,2]
[326521387,1715039445410,-303.46807129,0.00024657,2]
[326521388,1715039445420,-803.45,0.00024657,2]
[326521389,1715039445429,-500.0,0.00024657,2]
[326521390,1715039445439,-500.0,0.00024657,2]
[326521391,1715039445449,-1128.85,0.00024657,2]
[326521392,1715039445459,-500.0,0.00024657,2]
[326521393,1715039445470,-500.0,0.00024657,2]
[326521394,1715039445483,-920.64,0.00024657,2]
[326521395,1715039445499,-500.0,0.00024657,2]
[326521396,1715039445508,-500.0,0.00024657,2]
[326521397,1715039445518,-1167.6,0.00024657,2]
[326521398,1715039445527,-500.0,0.00024657,2]
[326521399,1715039445537,-500.0,0.00024657,2]
[326521400,1715039445546,-500.0,0.00024657,2]
[326521401,1715039445557,-385.86522778,0.00024657,2]
[326521402,1715039445566,-598.68,0.00024657,2]
[326521403,1715039445576,-500.0,0.00024657,2]
[326521404,1715039445585,-500.0,0.00024657,2]
[326521405,1715039445595,-922.29,0.00024657,2]
[326521406,1715039445604,-500.0,0.00024657,2]
[326521407,1715039445615,-500.0,0.00024657,2]
[326521408,1715039445624,-500.0,0.00024657,2]
[326521409,1715039445634,-711.9,0.00024657,2]
[326521410,1715039445644,-500.0,0.00024657,2]
[326521411,1715039445654,-500.0,0.00024657,2]
[326521412,1715039445663,-500.0,0.00024657,2]
[326521413,1715039445673,-500.0,0.00024657,2]
[326521414,1715039445682,-967.53,0.00024657,2]
[326521415,1715039445691,-502.28,0.00024657,2]
[326521416,1715039445702,-500.0,0.00024657,2]
[326521418,1715039445712,-504.34,0.00024657,2]
[326521419,1715039445721,-500.0,0.00024657,2]
[326521420,1715039445730,-617.73,0.00024657,2]
[326521421,1715039445740,-500.0,0.00024657,2]
[326521422,1715039445751,-500.0,0.00024657,2]
[326521423,1715039445760,-858.15,0.00024657,2]
[326521424,1715039445771,-1183.62,0.00024657,2]
[326521425,1715039445782,-500.0,0.00024657,2]
[326521426,1715039445791,-584.71,0.00024657,2]
[326521427,1715039445800,-1505.51,0.00024657,2]
[326521428,1715039445812,-500.0,0.00024657,2]
[326521429,1715039445821,-500.0,0.00024657,2]
[326521430,1715039445830,-500.0,0.00024657,2]
[326521431,1715039445839,-500.0,0.00024657,2]
[326521432,1715039445848,-500.0,0.00024657,2]
[326521433,1715039445857,-500.0,0.00024657,2]
[326521434,1715039445866,-500.0,0.00024657,2]
[326521435,1715039445875,-500.0,0.00024657,2]
[326521436,1715039445886,-995.82,0.00024657,2]
[326521437,1715039445901,-941.75,0.00024657,2]
[326521438,1715039445912,-988.68,0.00024657,2]
[326521439,1715039445923,-500.0,0.00024657,2]
[326521440,1715039445933,-715.19,0.00024657,2]
[326521441,1715039445943,-500.0,0.00024657,2]
[326521442,1715039445954,-500.0,0.00024657,2]
[326521443,1715039445963,-796.89,0.00024657,2]
[326521444,1715039445973,-500.0,0.00024657,2]
[326521445,1715039445982,-500.0,0.00024657,2]
[326521446,1715039445991,-1289.97,0.00024657,2]
[326521447,1715039446002,-874.43,0.00024657,2]
[326521448,1715039446013,-500.0,0.00024657,2]
[326521449,1715039446023,-766.77,0.00024657,2]
[326521450,1715039446032,-500.0,0.00024657,2]
[326521451,1715039446041,-943.88,0.00024657,2]
[326521452,1715039446050,-1707.85,0.00024657,2]
[326521453,1715039446059,-500.0,0.00024657,2]
[326521454,1715039446069,-500.0,0.00024657,2]
[326521455,1715039446078,-804.41,0.00024657,2]
[326521456,1715039446087,-1037.59,0.00024657,2]
[326521457,1715039446097,-660.5,0.00024657,2]
[326521458,1715039446107,-500.0,0.00024657,2]
[326521459,1715039446117,-1516.64,0.00024657,2]
[326521460,1715039446127,-500.0,0.00024657,2]
[326521461,1715039446136,-855.19,0.00024657,2]
[326521462,1715039446146,-1297.57,0.00024657,2]
[326521463,1715039446157,-515.39,0.00024657,2]
[326521464,1715039446166,-500.0,0.00024657,2]
[326521465,1715039446175,-500.0,0.00024657,2]
[326521466,1715039446184,-522.6,0.00024657,2]
[326521467,1715039446194,-622.06,0.00024657,2]
[326521468,1715039446209,-500.0,0.00024657,2]
[326521469,1715039446220,-1124.34,0.00024657,2]
[326521470,1715039446230,-500.0,0.00024657,2]
[326521471,1715039446240,-951.48,0.00024657,2]
[326521472,1715039446251,-1262.18,0.00024657,2]
[326521473,1715039446261,-500.0,0.00024657,2]
[326521474,1715039446270,-500.0,0.00024657,2]
[326521475,1715039446285,-881.54,0.00024657,2]
[326521476,1715039446297,-638.94,0.00024657,2]
[326521477,1715039446307,-500.0,0.00024657,2]
[326521478,1715039446317,-689.12,0.00024657,2]
[326521479,1715039446327,-500.0,0.00024657,2]
[326521480,1715039446337,-500.0,0.00024657,2]
[326521481,1715039446347,-500.0,0.00024657,2]
[326521482,1715039446661,-987.23,0.00024657,2]
[326521483,1715039446694,-500.0,0.00024657,2]
[326521484,1715039446704,-706.11,0.00024657,2]
[326521485,1715039446713,-583.9,0.00024657,2]
[326521486,1715039446723,-500.0,0.00024657,2]
[326521487,1715039446733,-501.75,0.00024657,2]
[326521488,1715039446742,-1366.17,0.00024657,2]
[326521489,1715039446751,-559.32,0.00024657,2]
[326521490,1715039446760,-701.0,0.00024657,2]
[326521491,1715039446770,-458.3553444,0.00024657,2]
[326521492,1715039446779,-500.0,0.00024657,2]
[326521493,1715039446788,-500.0,0.00024657,2]
[326521494,1715039446798,-725.65,0.00024657,2]
[326521495,1715039446807,-773.68,0.00024657,2]
[326521496,1715039446816,-1147.66,0.00024657,2]
[326521497,1715039446826,-755.09,0.00024657,2]
[326521498,1715039446835,-655.79,0.00024657,2]
[326521499,1715039446844,-500.0,0.00024657,2]
[326521500,1715039446854,-698.99,0.00024657,2]
[326521501,1715039446863,-1164.61,0.00024657,2]
[326521502,1715039446872,-1916.28,0.00024657,2]
[326521503,1715039446882,-580.96,0.00024657,2]
[326521504,1715039446891,-500.0,0.00024657,2]
[326521505,1715039446900,-500.0,0.00024657,2]
[326521506,1715039446909,-1040.49,0.00024657,2]
[326521507,1715039446918,-569.99,0.00024657,2]
[326521508,1715039446927,-593.98,0.00024657,2]
[326521509,1715039446937,-500.0,0.00024657,2]
[326521510,1715039446946,-2245.47,0.00024657,2]
[326521511,1715039446955,-500.0,0.00024657,2]
[326521512,1715039446965,-862.94,0.00024657,2]
[326521513,1715039446975,-500.0,0.00024657,2]
[326521514,1715039446984,-500.0,0.00024657,2]
[326521515,1715039446993,-539.21,0.00024657,2]
[326521516,1715039447006,-763.34,0.00024657,2]
[326521517,1715039447016,-836.54,0.00024657,2]
[326521518,1715039447025,-500.0,0.00024657,2]
[326521519,1715039447034,-766.04,0.00024657,2]
[326521520,1715039447043,-988.64,0.00024657,2]
[326521521,1715039447052,-500.0,0.00024657,2]
[326521522,1715039447061,-1082.54,0.00024657,2]
[326521523,1715039447071,-500.0,0.00024657,2]
[326521524,1715039447080,-2318.73,0.00024657,2]
[326521525,1715039447089,-12511.03,0.00024657,2]
[326521526,1715039447099,-500.0,0.00024657,2]
[326521527,1715039447108,-500.0,0.00024657,2]
[326521528,1715039447117,-500.0,0.00024657,2]
[326521529,1715039447126,-500.0,0.00024657,2]
[326521530,1715039447135,-500.0,0.00024657,2]
[326521531,1715039447146,-500.0,0.00024657,2]
[326521532,1715039447155,-500.0,0.00024657,2]
[326521533,1715039447171,-500.0,0.00024657,2]
[326521534,1715039447181,-1072.81,0.00024657,2]
[326521535,1715039447192,-1247.22,0.00024657,2]
[326521536,1715039447207,-604.58324388,0.00024657,2]
[326521537,1715039447220,-1729.54,0.00024657,2]
[326521538,1715039447230,-500.0,0.00024657,2]
[326521539,1715039447241,-727.51,0.00024657,2]
[326521540,1715039447251,-500.0,0.00024657,2]
[326521541,1715039447260,-500.0,0.00024657,2]
[326521542,1715039447269,-2290.29,0.00024657,2]
[326521543,1715039447281,-7260.72,0.00024657,2]
[326521544,1715039447290,-2186.92,0.00024657,2]
[326521545,1715039447300,-852.82,0.00024657,2]
[326521546,1715039447309,-1101.7,0.00024657,2]
[326521547,1715039447319,-500.0,0.00024657,2]
[326521548,1715039447328,-500.0,0.00024657,2]
[326521549,1715039447337,-500.0,0.00024657,2]
[326521550,1715039447347,-500.0,0.00024657,2]
[326521551,1715039447356,-500.0,0.00024657,2]
[326521552,1715039447366,-500.0,0.00024657,2]
[326521553,1715039447376,-517.79,0.00024657,2]
[326521554,1715039447387,-1161.49,0.00024657,2]
[326521555,1715039447396,-1498.75,0.00024657,2]
[326521556,1715039447406,-733.93,0.00024657,2]
[326521557,1715039447415,-500.0,0.00024657,2]
[326521558,1715039447425,-607.44,0.00024657,2]
[326521559,1715039447435,-2044.25,0.00024657,2]
[326521560,1715039447444,-504.7,0.00024657,2]
[326521561,1715039447454,-1279.89,0.00024657,2]
[326521562,1715039447464,-500.0,0.00024657,2]
[326521563,1715039447473,-500.0,0.00024657,2]
[326521564,1715039447482,-500.0,0.00024657,2]
[326521565,1715039447492,-500.0,0.00024657,2]
[326521566,1715039447501,-500.0,0.00024657,2]
[326521567,1715039447511,-884.5,0.00024657,2]
[326521568,1715039447520,-632.9,0.00024657,2]
[326521569,1715039447530,-866.37,0.00024657,2]
[326521570,1715039447539,-500.0,0.00024657,2]
[326521571,1715039447548,-829.96,0.00024657,2]
[326521572,1715039447558,-500.0,0.00024657,2]
[326521573,1715039447567,-9129.2,0.00024657,2]
[326521574,1715039447577,-682.51,0.00024657,2]
[326521575,1715039447586,-915.62,0.00024657,2]
[326521576,1715039447596,-500.0,0.00024657,2]
[326521577,1715039447606,-197.39915656,0.00024657,2]
[326521578,1715039447616,-500.0,0.00024657,2]
[326521579,1715039447625,-500.0,0.00024657,2]
[326521580,1715039447635,-500.0,0.00024657,2]
[326521581,1715039447645,-950.76,0.00024657,2]
[326521582,1715039447654,-1149.78,0.00024657,2]
[326521583,1715039447664,-1311.01,0.00024657,2]
[326521584,1715039447673,-6881.8,0.00024657,2]
[326521585,1715039447684,-500.0,0.00024657,2]
[326521586,1715039447695,-2113.99,0.00024657,2]
[326521587,1715039447706,-517.57,0.00024657,2]
[326521588,1715039447715,-720.48,0.00024657,2]
[326521589,1715039447726,-500.0,0.00024657,2]
[326521590,1715039447736,-500.0,0.00024657,2]
[326521591,1715039447745,-500.0,0.00024657,2]
[326521592,1715039447755,-525.54,0.00024657,2]
[326521593,1715039447765,-500.0,0.00024657,2]
[326521594,1715039447775,-500.0,0.00024657,2]
[326521595,1715039447785,-1550.51,0.00024657,2]
[326521596,1715039447795,-500.0,0.00024657,2]
[326521597,1715039447805,-963.2,0.00024657,2]
[326521598,1715039447815,-962.65,0.00024657,2]
[326521599,1715039447825,-500.0,0.00024657,2]
[326521600,1715039447834,-529.82,0.00024657,2]
[326521601,1715039447844,-1178.92,0.00024657,2]
[326521602,1715039447854,-4670.74,0.00024657,2]
[326521603,1715039447863,-519.67,0.00024657,2]
[326521604,1715039447873,-500.0,0.00024657,2]
[326521605,1715039447883,-500.0,0.00024657,2]
[326521606,1715039447893,-500.0,0.00024657,2]
[326521607,1715039447903,-500.0,0.00024657,2]
[326521608,1715039447913,-500.0,0.00024657,2]
[326521609,1715039447922,-600.83,0.00024657,2]
[326521610,1715039447932,-500.0,0.00024657,2]
[326521611,1715039447942,-823.3,0.00024657,2]
[326521612,1715039447954,-500.0,0.00024657,2]
[326521613,1715039447964,-1293.25,0.00024657,2]
[326521614,1715039447974,-500.0,0.00024657,2]
[326521615,1715039447983,-500.0,0.00024657,2]
[326521616,1715039447992,-18554.77,0.00024657,2]
[326521617,1715039448002,-666.69,0.00024657,2]
[326521618,1715039448011,-591.46,0.00024657,2]
[326521619,1715039448021,-1308.37,0.00024657,2]
[326521620,1715039448031,-634.36,0.00024657,2]
[326521621,1715039448039,-572.99,0.00024657,2]
[326521622,1715039448049,-500.0,0.00024657,2]
[326521623,1715039448062,-569.25,0.00024657,2]
[326521624,1715039448104,-520.2,0.00024657,2]
[326521625,1715039448138,-604.43,0.00024657,2]
[326521626,1715039448165,-1062.36,0.00024657,2]
[326521627,1715039448178,-500.0,0.00024657,2]
[326521628,1715039448188,-939.55,0.00024657,2]
[326521629,1715039448198,-500.0,0.00024657,2]
[326521630,1715039448215,-500.0,0.00024657,2]
[326521631,1715039448224,-500.0,0.00024657,2]
[326521632,1715039448234,-829.15,0.00024657,2]
[326521633,1715039448244,-552.69,0.00024657,2]
[326521634,1715039448255,-1080.71,0.00024657,2]
[326521635,1715039448264,-1076.89,0.00024657,2]
[326521636,1715039448274,-500.0,0.00024657,2]
[326521637,1715039448283,-500.0,0.00024657,2]
[326521638,1715039448293,-943.17,0.00024657,2]
[326521639,1715039448303,-1863.85,0.00024657,2]
[326521640,1715039448312,-500.0,0.00024657,2]
[326521641,1715039448322,-500.0,0.00024657,2]
[326521642,1715039448332,-1034.75,0.00024657,2]
[326521643,1715039448342,-500.0,0.00024657,2]
[326521644,1715039448351,-500.0,0.00024657,2]
[326521645,1715039448361,-3526.06,0.00024657,2]
[326521646,1715039448371,-972.48,0.00024657,2]
[326521647,1715039448381,-500.0,0.00024657,2]
[326521648,1715039448390,-502.68,0.00024657,2]
[326521649,1715039448400,-568.85,0.00024657,2]
[326521650,1715039448410,-1002.57,0.00024657,2]
[326521651,1715039448419,-808.26,0.00024657,2]
[326521652,1715039448429,-819.64,0.00024657,2]
[326521653,1715039448439,-1419.89,0.00024657,2]
[326521654,1715039448448,-500.0,0.00024657,2]
[326521655,1715039448458,-500.0,0.00024657,2]
[326521656,1715039448468,-894.96,0.00024657,2]
[326521657,1715039448478,-506.41552378,0.00024657,2]
[326521658,1715039448488,-500.0,0.00024657,2]
[326521659,1715039448499,-1088.47,0.00024657,2]
[326521660,1715039448508,-1536.83,0.00024657,2]
[326521661,1715039448518,-1857.66,0.00024657,2]
[326521663,1715039448528,-500.0,0.00024657,2]
[326521665,1715039448538,-500.0,0.00024657,2]
[326521667,1715039448547,-500.0,0.00024657,2]
[326521669,1715039448557,-500.0,0.00024657,2]
[326521671,1715039448567,-500.0,0.00024657,2]
[326521672,1715039448576,-500.0,0.00024657,2]
[326521673,1715039448586,-500.0,0.00024657,2]
[326521674,1715039448596,-1130.81,0.00024657,2]
[326521675,1715039448606,-500.0,0.00024657,2]
[326521676,1715039448615,-1150.06,0.00024657,2]
[326521677,1715039448625,-500.0,0.00024657,2]
[326521678,1715039448635,-1371.37,0.00024657,2]
[326521679,1715039448645,-988.37,0.00024657,2]
[326521680,1715039448655,-1296.71,0.00024657,2]
[326521681,1715039448665,-761.26,0.00024657,2]
[326521682,1715039448676,-2099.23,0.00024657,2]
[326521683,1715039448687,-500.0,0.00024657,2]
[326521684,1715039448698,-500.0,0.00024657,2]
[326521685,1715039448708,-596.4,0.00024657,2]
[326521686,1715039448719,-716.19,0.00024657,2]
[326521687,1715039448728,-500.0,0.00024657,2]
[326521688,1715039448738,-776.06,0.00024657,2]
[326521689,1715039448748,-500.0,0.00024657,2]
[326521690,1715039448757,-500.0,0.00024657,2]
[326521691,1715039448766,-505.49,0.00024657,2]
[326521692,1715039448777,-627.71,0.00024657,2]
[326521693,1715039448786,-1245.98,0.00024657,2]
[326521694,1715039448796,-2191.11,0.00024657,2]
[326521695,1715039448806,-500.0,0.00024657,2]
[326521696,1715039448817,-500.0,0.00024657,2]
[326521697,1715039448826,-762.81,0.00024657,2]
[326521698,1715039448836,-673.48,0.00024657,2]
[326521699,1715039448845,-521.77,0.00024657,2]
[326521700,1715039448855,-500.0,0.00024657,2]
[326521701,1715039448865,-500.0,0.00024657,2]
[326521702,1715039448875,-500.0,0.00024657,2]
[326521703,1715039448884,-500.0,0.00024657,2]
[326521704,1715039448894,-500.0,0.00024657,2]
[326521705,1715039448904,-2925.41,0.00024657,2]
[326521706,1715039448914,-3511.86,0.00024657,2]
[326521707,1715039448923,-1659.95499081,0.00024657,2]
[326521739,1715039449502,-117.76500919,0.00024657,2]
[326521741,1715039449511,-252.49699081,0.00024657,2]
[326521743,1715039449523,-247.50300919,0.00024657,2]
[326521745,1715039449532,-668.6,0.00024657,2]
[326521747,1715039449542,-492.88480353,0.00024657,2]
[326521749,1715039449553,-277.86519647,0.00024657,2]
[326521751,1715039449562,-500.0,0.00024657,2]
[326521753,1715039449572,-601.53,0.00024657,2]
[326521755,1715039449581,-580.60480353,0.00024657,2]
[326521757,1715039449593,-133.44519647,0.00024657,2]
[326521759,1715039449602,-677.26201725,0.00024657,2]
[326521762,1715039449615,-437.49798275,0.00024657,2]
[326521764,1715039449624,-195.46201725,0.00024657,2]
[326521781,1715039450748,-310.34277612,0.00015173,2]
[326521782,1715039450757,-894.45046993,0.00022,2]
[326521783,1715039450767,-205.63743061,0.00022,2]
[326521784,1715039450778,-688.81303932,0.00022,2]
[326521785,1715039450787,-894.45046993,0.00022,2]
[326521786,1715039450797,-894.45046993,0.00022,2]
[326521787,1715039450807,-894.45046993,0.00022,2]
[326521788,1715039450819,-894.45046993,0.00022,2]
[326521789,1715039450829,-894.45046993,0.00022,2]
[326521790,1715039450839,-894.45046993,0.00022,2]
[326521791,1715039450848,-657.8097211,0.00022,2]
[326521792,1715039450947,-236.64074883,0.00022,2]
[326521793,1715039450957,-894.45046993,0.00022,2]
[326521794,1715039450968,-882.40878094,0.00022,2]
[326521795,1715039450979,-12.04168899,0.00022,2]
[326521796,1715039450988,-304.53798275,0.00024657,2]
[326521797,1715039450998,-11.47032811,0.00024657,2]
[326521798,1715039451010,-488.52967189,0.00024657,2]
[326521799,1715039451020,-436.97627808,0.00024657,2]
[326521800,1715039451032,-98.48372192,0.00024657,2]
[326521801,1715039451041,-328.66627608,0.00024657,2]